[Event "FIDE WCCC Girls-10 2024"]
[Site "Montesilvano"]
[Date "2024.11.18"]
[Round "3.14"]
[White "Norkulova, Malika"]
[Black "Trzcinska, Weronika"]
[Result "1-0"]
[ECO "A26"]
[WhiteElo "1480"]
[BlackElo "1653"]
[PlyCount "69"]
[EventDate "2024.11.18"]
[EventType "swiss"]
[EventCountry "ITA"]
[TimeControl "5400+30"]

1. c4 {[%emt 0:00:02]} e5 {[%emt 0:00:08]} 2. Nc3 {[%emt 0:00:07]} Nc6 {[%emt 0:00:21]} 3. g3 {[%emt 0:00:09]} g6 {[%emt 0:00:10]} 4. Bg2 {[%emt 0:00:22]} Bg7 {[%emt 0:00:18]} 5. e4 {[%emt 0:00:54]} Nf6 {[%emt 0:01:27]} 6. Nge2 {[%emt 0:00:12]} O-O {[%emt 0:01:04]} 7. O-O {[%emt 0:00:07]} d6 {[%emt 0:01:24]} 8. d3 {[%emt 0:00:37]} Be6 {[%emt 0:01:19]} 9. a3 {[%emt 0:00:56]} a5 {[%emt 0:04:09]} 10. b3 {[%emt 0:01:39]} Qc8 {[%emt 0:01:52]} 11. Bb2 {[%emt 0:00:56]} Bh3 {[%emt 0:02:50]} 12. Nd5 {[%emt 0:01:05]} Bxg2 {[%emt 0:00:44]} 13. Kxg2 {[%emt 0:00:15]} Nxd5 {[%emt 0:04:36]} 14. cxd5 {[%emt 0:02:43]} Ne7 {[%emt 0:01:26]} 15. Rc1 {[%emt 0:00:28]} c5 {[%emt 0:00:29]} 16. d4 {[%emt 0:01:50]} exd4 {[%emt 0:00:22]} 17. Bxd4 {[%emt 0:00:18]} Bxd4 {[%emt 0:00:43]} 18. Nxd4 {[%emt 0:00:09]} Qd7 {[%emt 0:02:15]} 19. Nf3 {[%emt 0:05:03]} f6 {[%emt 0:02:30]} 20. Qd2 {[%emt 0:07:12]} Kg7 {[%emt 0:08:21]} 21. h3 {[%emt 0:14:45]} Qb5 {[%emt 0:08:22]} 22. b4 {[%emt 0:08:25]} axb4 {[%emt 0:01:42]} 23. axb4 {[%emt 0:06:40]} cxb4 {[%emt 0:05:32]} 24. Nd4 {[%emt 0:00:37]} Qb6 {[%emt 0:02:28]} 25. Ne6+ {[%emt 0:00:34]} Kf7 {[%emt 0:00:15]} 26. Nxf8 {[%emt 0:47:25]} Rxf8 {[%emt 0:00:10]} 27. Rb1 {[%emt 0:00:00]} Qc5 {[%emt 0:04:36]} 28. Rxb4 {[%emt 0:00:00]} b6 {[%emt 0:01:07]} 29. Rc1 {[%emt 0:00:00]} Qa5 {[%emt 0:00:19]} 30. Rc7 {[%emt 0:00:00]} Rc8 {[%emt 0:02:18]} 31. Rb7 {[%emt 0:00:00]} Rc4 {[%emt 0:05:02]} 32. Qh6 {[%emt 0:00:00]} Rxe4 {[%emt 0:06:25]} 33. Rxe4 {[%emt 0:00:00]} Qxd5 {[%emt 0:00:12]} 34. Rbxe7+ {[%emt 0:00:00]} Kg8 {[%emt 0:00:19]} 35. Qg7# {[%emt 0:00:00]} 1-0

[Event "FIDE WCCC Girls-10 2024"]
[Site "Montesilvano"]
[Date "2024.11.18"]
[Round "3.15"]
[White "Abibulla, Inzhu"]
[Black "Jaksa, Ema"]
[Result "0-1"]
[ECO "C56"]
[WhiteElo "1499"]
[BlackElo "1635"]
[PlyCount "128"]
[EventDate "2024.11.18"]
[EventType "swiss"]
[EventCountry "ITA"]
[TimeControl "5400+30"]

1. e4 {[%emt 0:00:07]} e5 {[%emt 0:00:40]} 2. Nf3 {[%emt 0:00:25]} Nc6 {[%emt 0:00:56]} 3. Bc4 {[%emt 0:00:30]} Nf6 {[%emt 0:00:53]} 4. d4 {[%emt 0:00:36]} exd4 {[%emt 0:00:43]} 5. O-O {[%emt 0:00:17]} Nxe4 {[%emt 0:01:08]} 6. Re1 {[%emt 0:00:26]} d5 {[%emt 0:00:42]} 7. Bxd5 {[%emt 0:00:47]} Qxd5 {[%emt 0:00:08]} 8. Nc3 {[%emt 0:00:24]} Qd8 {[%emt 0:02:00]} 9. Nxe4 {[%emt 0:00:13]} Be7 {[%emt 0:00:59]} 10. Bg5 {[%emt 0:02:33]} O-O {[%emt 0:01:18]} 11. Bxe7 {[%emt 0:00:27]} Qxe7 {[%emt 0:00:55]} 12. Nxd4 {[%emt 0:01:27]} Bd7 {[%emt 0:01:25]} 13. Nc3 {[%emt 0:08:30]} Qd8 {[%emt 0:10:58]} 14. Nd5 {[%emt 0:05:52]} Nxd4 {[%emt 0:03:43]} 15. Qxd4 {[%emt 0:00:15]} Be6 {[%emt 0:01:50]} 16. Rad1 {[%emt 0:02:24]} Bxd5 {[%emt 0:04:51]} 17. Qxd5 {[%emt 0:00:27]} c6 {[%emt 0:01:46]} 18. Qd7 {[%emt 0:00:51]} Qb6 {[%emt 0:02:12]} 19. Qd4 {[%emt 0:02:12]} Qa5 {[%emt 0:02:32]} 20. Qc4 {[%emt 0:01:49]} Rad8 {[%emt 0:01:09]} 21. h3 {[%emt 0:04:02]} h6 {[%emt 0:02:12]} 22. a3 {[%emt 0:00:52]} Qh5 {[%emt 0:00:55]} 23. Rxd8 {[%emt 0:02:33]} Rxd8 {[%emt 0:00:09]} 24. Kh2 {[%emt 0:05:40]} Qg6 {[%emt 0:03:38]} 25. Qf4 {[%emt 0:08:33]} Kf8 {[%emt 0:02:46]} 26. Qc7 {[%emt 0:04:35]} Qd6+ {[%emt 0:00:15]} 27. Qxd6+ {[%emt 0:00:08]} Rxd6 {[%emt 0:00:09]} 28. Re2 {[%emt 0:00:18]} f6 {[%emt 0:01:48]} 29. Kg3 {[%emt 0:00:27]} Kf7 {[%emt 0:01:28]} 30. Re3 {[%emt 0:01:20]} Rd2 {[%emt 0:01:03]} 31. Rb3 {[%emt 0:01:29]} b6 {[%emt 0:01:02]} 32. Rc3 {[%emt 0:00:18]} c5 {[%emt 0:00:32]} 33. Kf3 {[%emt 0:00:26]} Ke6 {[%emt 0:00:32]} 34. Ke3 {[%emt 0:00:24]} Rd1 {[%emt 0:01:19]} 35. Rd3 {[%emt 0:02:43]} Rb1 {[%emt 0:02:09]} 36. b3 {[%emt 0:00:10]} Ra1 {[%emt 0:03:01]} 37. a4 {[%emt 0:00:15]} Re1+ {[%emt 0:01:08]} 38. Kd2 {[%emt 0:01:29]} Re5 {[%emt 0:02:27]} 39. Re3 {[%emt 0:02:27]} g5 {[%emt 0:05:19]} 40. g4 {[%emt 0:00:59]} f5 {[%emt 0:06:05]} 41. f3 {[%emt 0:02:44]} fxg4 {[%emt 0:02:26]} 42. hxg4 {[%emt 0:00:51]} Rxe3 {[%emt 0:01:05]} 43. Kxe3 {[%emt 0:00:09]} Ke5 {[%emt 0:00:45]} 44. c3 {[%emt 0:00:30]} a6 {[%emt 0:02:10]} 45. c4 {[%emt 0:01:33]} a5 {[%emt 0:00:15]} 46. Kd3 {[%emt 0:00:15]} Kf4 {[%emt 0:02:00]} 47. Ke2 {[%emt 0:00:27]} Kg3 {[%emt 0:02:33]} 48. Ke3 {[%emt 0:00:11]} Kh3 {[%emt 0:01:19]} 49. Kd3 {[%emt 0:00:47]} Kh2 {[%emt 0:02:38]} 50. Ke2 {[%emt 0:01:21]} Kg2 {[%emt 0:00:20]} 51. Ke3 {[%emt 0:00:05]} Kf1 {[%emt 0:01:41]} 52. f4 {[%emt 0:00:41]} gxf4+ {[%emt 0:00:08]} 53. Kxf4 {[%emt 0:37:46]} Kf2 54. Ke4 {[%emt 0:00:00]} Kg3 {[%emt 0:02:04]} 55. Kf5 {[%emt 0:00:00]} Kf3 {[%emt 0:00:14]} 56. g5 {[%emt 0:00:00]} hxg5 {[%emt 0:00:01]} 57. Kxg5 {[%emt 0:00:00]} Ke3 {[%emt 0:00:05]} 58. Kf5 {[%emt 0:00:00]} Kd3 {[%emt 0:00:09]} 59. Ke5 {[%emt 0:00:00]} Kc3 {[%emt 0:00:06]} 60. Kd5 {[%emt 0:00:00]} Kxb3 {[%emt 0:00:17]} 61. Kc6 {[%emt 0:00:00]} Kxa4 {[%emt 0:00:16]} 62. Kxb6 {[%emt 0:00:00]} Kb4 {[%emt 0:00:04]} 63. Ka6 {[%emt 0:00:00]} a4 {[%emt 0:00:02]} 64. Kb6 {[%emt 0:00:00]} a3 {[%emt 0:00:04]} 0-1

[Event "FIDE WCCC Girls-10 2024"]
[Site "Montesilvano"]
[Date "2024.11.18"]
[Round "3.17"]
[White "Ritinioti, Sofia"]
[Black "Rzadkowska, Lila"]
[Result "0-1"]
[ECO "D02"]
[WhiteElo "1534"]
[BlackElo "1765"]
[PlyCount "92"]
[EventDate "2024.11.18"]
[EventType "swiss"]
[EventCountry "ITA"]
[TimeControl "5400+30"]

1. d4 {[%emt 0:00:03]} d5 {[%emt 0:00:25]} 2. Nf3 {[%emt 0:00:08]} c5 {[%emt 0:00:07]} 3. Bf4 {[%emt 0:00:21]} Nc6 {[%emt 0:04:50]} 4. e3 {[%emt 0:00:44]} Nf6 {[%emt 0:01:45]} 5. Nbd2 {[%emt 0:00:45]} g6 {[%emt 0:02:31]} 6. dxc5 {[%emt 0:00:48]} Bg7 {[%emt 0:01:47]} 7. Be2 {[%emt 0:01:37]} Nh5 {[%emt 0:08:53]} 8. c3 {[%emt 0:04:06]} Nxf4 {[%emt 0:00:30]} 9. exf4 {[%emt 0:00:13]} d4 {[%emt 0:01:48]} 10. cxd4 {[%emt 0:03:21]} Nxd4 {[%emt 0:00:39]} 11. Bc4 {[%emt 0:05:30]} O-O {[%emt 0:03:53]} 12. Nxd4 {[%emt 0:02:36]} Qxd4 {[%emt 0:02:39]} 13. Qc1 {[%emt 0:04:55]} Bf5 {[%emt 0:03:39]} 14. O-O {[%emt 0:05:15]} Qxf4 {[%emt 0:06:55]} 15. Nf3 {[%emt 0:03:33]} Qxc1 {[%emt 0:00:23]} 16. Raxc1 {[%emt 0:00:24]} Bxb2 {[%emt 0:00:21]} 17. Rce1 {[%emt 0:02:23]} e6 {[%emt 0:04:08]} 18. Nh4 {[%emt 0:01:51]} Rac8 {[%emt 0:01:17]} 19. Nxf5 {[%emt 0:01:08]} gxf5 {[%emt 0:00:14]} 20. Rb1 {[%emt 0:01:34]} Rxc5 {[%emt 0:01:44]} 21. Rxb2 {[%emt 0:00:28]} Rxc4 {[%emt 0:00:08]} 22. Rxb7 {[%emt 0:00:41]} Ra4 {[%emt 0:02:58]} 23. Ra1 {[%emt 0:01:45]} Rd8 {[%emt 0:01:29]} 24. Rb2 {[%emt 0:01:32]} Rd3 {[%emt 0:04:22]} 25. g3 {[%emt 0:01:37]} Kg7 {[%emt 0:05:01]} 26. Kg2 {[%emt 0:02:57]} Kg6 {[%emt 0:01:29]} 27. f4 {[%emt 0:01:41]} f6 {[%emt 0:00:53]} 28. Kf2 {[%emt 0:02:56]} e5 {[%emt 0:00:36]} 29. fxe5 {[%emt 0:01:09]} fxe5 {[%emt 0:00:12]} 30. Re2 {[%emt 0:01:38]} e4 {[%emt 0:00:18]} 31. Re3 {[%emt 0:02:37]} Rxe3 {[%emt 0:01:36]} 32. Kxe3 {[%emt 0:00:18]} Ra3+ {[%emt 0:00:21]} 33. Ke2 {[%emt 0:02:15]} Kg5 {[%emt 0:00:20]} 34. Kf2 {[%emt 0:02:22]} h5 {[%emt 0:01:39]} 35. h3 {[%emt 0:04:07]} h4 {[%emt 0:01:43]} 36. gxh4+ {[%emt 0:00:53]} Kxh4 {[%emt 0:00:09]} 37. Kg2 {[%emt 0:04:53]} f4 {[%emt 0:00:38]} 38. Kf2 {[%emt 0:01:25]} f3 {[%emt 0:02:20]} 39. Ke1 {[%emt 0:01:21]} e3 {[%emt 0:00:17]} 40. Kf1 {[%emt 0:00:43]} Kxh3 {[%emt 0:00:07]} 41. Kg1 {[%emt 0:01:45]} Kg3 {[%emt 0:01:45]} 42. Rb1 {[%emt 0:05:48]} Rxa2 {[%emt 0:00:36]} 43. Kh1 {[%emt 0:02:32]} Rh2+ {[%emt 0:00:22]} 44. Kg1 {[%emt 0:00:14]} f2+ {[%emt 0:00:23]} 45. Kf1 {[%emt 0:00:12]} Kf3 {[%emt 0:00:18]} 46. Rb2 {[%emt 0:00:35]} Rh1# {[%emt 0:00:11]} 0-1

[Event "FIDE WCCC Girls-10 2024"]
[Site "Montesilvano"]
[Date "2024.11.18"]
[Round "3.18"]
[White "Samhita Pungavanam"]
[Black "Kravchuk, Daria"]
[Result "1-0"]
[ECO "B22"]
[WhiteElo "1752"]
[BlackElo "1569"]
[PlyCount "73"]
[EventDate "2024.11.18"]
[EventType "swiss"]
[EventCountry "ITA"]
[TimeControl "5400+30"]

1. e4 {[%emt 0:00:04]} c5 {[%emt 0:00:33]} 2. Nf3 {[%emt 0:00:05]} Nc6 {[%emt 0:00:08]} 3. c3 {[%emt 0:02:10]} Nf6 {[%emt 0:01:29]} 4. e5 {[%emt 0:01:33]} Nd5 {[%emt 0:00:44]} 5. d4 {[%emt 0:00:47]} cxd4 {[%emt 0:00:43]} 6. Bc4 {[%emt 0:01:34]} Nb6 {[%emt 0:05:27]} 7. Bb3 {[%emt 0:01:14]} d6 {[%emt 0:08:44]} 8. exd6 {[%emt 0:02:30]} Qxd6 {[%emt 0:05:25]} 9. O-O {[%emt 0:08:30]} g6 {[%emt 0:04:17]} 10. Ng5 {[%emt 0:05:41]} e6 {[%emt 0:02:50]} 11. Qf3 {[%emt 0:03:01]} Qe7 {[%emt 0:03:54]} 12. Ne4 {[%emt 0:03:01]} f5 {[%emt 0:04:47]} 13. Ng5 {[%emt 0:06:00]} Bg7 {[%emt 0:06:48]} 14. Re1 {[%emt 0:04:21]} Ne5 {[%emt 0:05:44]} 15. Qg3 {[%emt 0:06:17]} h6 {[%emt 0:03:25]} 16. Rxe5 {[%emt 0:05:24]} hxg5 {[%emt 0:00:38]} 17. Re1 {[%emt 0:03:12]} f4 {[%emt 0:05:00]} 18. Qd3 {[%emt 0:02:10]} Rh6 {[%emt 0:10:48]} 19. cxd4 {[%emt 0:03:45]} Bd7 {[%emt 0:01:45]} 20. d5 {[%emt 0:00:35]} e5 {[%emt 0:03:22]} 21. Nc3 {[%emt 0:02:14]} O-O-O {[%emt 0:06:08]} 22. d6 {[%emt 0:00:42]} Qf8 {[%emt 0:00:39]} 23. Nd5 {[%emt 0:03:58]} Nxd5 {[%emt 0:03:10]} 24. Bxd5 {[%emt 0:04:05]} Bc6 {[%emt 0:05:45]} 25. Bxc6 {[%emt 0:00:42]} bxc6 {[%emt 0:00:32]} 26. Qa6+ {[%emt 0:00:11]} Kb8 {[%emt 0:00:30]} 27. Be3 {[%emt 0:06:26]} Rd7 {[%emt 0:04:23]} 28. Qxc6 {[%emt 0:00:47]} Qxd6 {[%emt 0:02:35]} 29. Qb5+ {[%emt 0:00:12]} Ka8 {[%emt 0:00:28]} 30. Rac1 {[%emt 0:00:56]} Rh8 {[%emt 0:01:27]} 31. Bc5 {[%emt 0:02:04]} Rb8 {[%emt 0:02:25]} 32. Qa4 {[%emt 0:03:00]} Qe6 {[%emt 0:00:32]} 33. Red1 {[%emt 0:02:38]} Rbd8 {[%emt 0:01:16]} 34. Rd6 {[%emt 0:02:57]} Qg4 {[%emt 0:00:32]} 35. Qc6+ {[%emt 0:00:26]} Kb8 {[%emt 0:00:27]} 36. Bxa7+ {[%emt 0:00:14]} Kxa7 {[%emt 0:00:15]} 37. Qa6+ {[%emt 0:15:34]} 1-0

[Event "FIDE WCCC Girls-10 2024"]
[Site "Montesilvano"]
[Date "2024.11.18"]
[Round "3.19"]
[White "Nguyen, Lam Vy Le"]
[Black "Saltkhutsishvili, Sara"]
[Result "0-1"]
[ECO "B11"]
[WhiteElo "1728"]
[BlackElo "1546"]
[PlyCount "106"]
[EventDate "2024.11.18"]
[EventType "swiss"]
[EventCountry "ITA"]
[TimeControl "5400+30"]

1. e4 {[%emt 0:00:06]} c6 {[%emt 0:00:58]} 2. Nc3 {[%emt 0:00:14]} d5 {[%emt 0:01:11]} 3. Nf3 {[%emt 0:00:08]} Bg4 {[%emt 0:03:40]} 4. h3 {[%emt 0:00:18]} Bxf3 {[%emt 0:03:59]} 5. Qxf3 {[%emt 0:00:15]} d4 {[%emt 0:06:41]} 6. Ne2 {[%emt 0:00:11]} e5 {[%emt 0:06:06]} 7. Ng3 {[%emt 0:01:47]} Nf6 {[%emt 0:06:06]} 8. Bc4 {[%emt 0:02:23]} g6 {[%emt 0:03:12]} 9. d3 {[%emt 0:00:44]} Bb4+ {[%emt 0:03:26]} 10. Ke2 {[%emt 1:29:24]} Bf8 {[%emt 1:00:11]} 11. h4 {[%emt 0:00:00]} h5 {[%emt 0:00:00]} 12. Bg5 {[%emt 0:00:00]} Bg7 {[%emt 0:00:00]} 13. Rhe1 {[%emt 0:00:00]} Nbd7 {[%emt 0:00:00]} 14. Rad1 {[%emt 0:00:00]} O-O {[%emt 0:00:00]} 15. Kf1 {[%emt 0:00:00]} Qc7 {[%emt 0:00:00]} 16. a3 {[%emt 0:00:00]} b5 {[%emt 0:00:00]} 17. Ba2 {[%emt 0:00:00]} c5 {[%emt 0:00:00]} 18. Qe2 {[%emt 0:00:00]} Nh7 {[%emt 0:00:00]} 19. Qd2 {[%emt 0:00:00]} Qd6 {[%emt 0:00:00]} 20. Kg1 {[%emt 0:00:00]} Nxg5 {[%emt 0:00:00]} 21. Qxg5 {[%emt 0:00:00]} Qf6 {[%emt 0:00:00]} 22. Ne2 {[%emt 0:00:00]} Kh7 {[%emt 0:00:00]} 23. f4 {[%emt 0:00:00]} Qxg5 {[%emt 0:00:00]} 24. fxg5 {[%emt 0:00:00]} Nb6 {[%emt 0:00:00]} 25. Rf1 {[%emt 0:00:00]} c4 {[%emt 0:00:00]} 26. Rf3 {[%emt 0:00:00]} f5 {[%emt 0:00:00]} 27. gxf6 {[%emt 0:00:00]} Rxf6 {[%emt 0:00:00]} 28. Rxf6 {[%emt 0:00:00]} Bxf6 {[%emt 0:00:00]} 29. g3 {[%emt 0:00:00]} g5 {[%emt 0:00:00]} 30. Rf1 {[%emt 0:00:00]} Kg6 {[%emt 0:00:00]} 31. dxc4 {[%emt 0:00:00]} bxc4 {[%emt 0:00:00]} 32. hxg5 {[%emt 0:00:00]} Bxg5 {[%emt 0:00:00]} 33. b3 {[%emt 0:00:00]} d3 {[%emt 0:00:00]} 34. cxd3 {[%emt 0:00:00]} cxd3 {[%emt 0:00:00]} 35. Nc3 {[%emt 0:00:00]} Rc8 {[%emt 0:00:00]} 36. Nd1 {[%emt 0:00:00]} Rc1 {[%emt 0:00:29]} 37. b4 {[%emt 0:00:00]} d2 {[%emt 0:00:40]} 38. Bb3 {[%emt 0:00:00]} Nc4 {[%emt 0:01:29]} 39. Kf2 {[%emt 0:00:00]} Nxa3 {[%emt 0:01:13]} 40. Ke2 {[%emt 0:00:00]} Rb1 {[%emt 0:01:22]} 41. Bf7+ {[%emt 0:00:00]} Kh6 {[%emt 0:00:27]} 42. Rf5 {[%emt 0:00:00]} Nb5 {[%emt 0:00:45]} 43. Rf1 {[%emt 0:00:00]} Rxb4 {[%emt 0:01:17]} 44. Bd5 {[%emt 0:00:00]} Rb1 {[%emt 0:01:57]} 45. Ba2 {[%emt 0:00:00]} Rc1 {[%emt 0:01:08]} 46. Bf7 {[%emt 0:00:00]} a5 {[%emt 0:00:10]} 47. Be8 {[%emt 0:00:26]} Nd6 {[%emt 0:01:05]} 48. Ba4 {[%emt 0:01:27]} Nxe4 {[%emt 0:00:19]} 49. Rf3 {[%emt 0:01:48]} Nc5 {[%emt 0:01:12]} 50. Ra3 {[%emt 0:00:31]} e4 {[%emt 0:00:50]} 51. Bb5 {[%emt 0:00:32]} e3 {[%emt 0:01:15]} 52. Bc6 {[%emt 0:00:39]} Ne6 {[%emt 0:00:50]} 53. Bf3 {[%emt 0:00:52]} Nd4+ {[%emt 0:00:24]} 0-1

[Event "FIDE WCCC Girls-10 2024"]
[Site "Montesilvano"]
[Date "2024.11.18"]
[Round "3.20"]
[White "Kocherha, Yelizavieta"]
[Black "Bakhshi, Rana"]
[Result "0-1"]
[ECO "B21"]
[WhiteElo "1523"]
[BlackElo "1727"]
[PlyCount "124"]
[EventDate "2024.11.18"]
[EventType "swiss"]
[EventCountry "ITA"]
[TimeControl "5400+30"]

1. e4 {[%emt 0:00:03]} c5 {[%emt 0:01:07]} 2. Nf3 {[%emt 0:00:11]} d6 {[%emt 0:01:01]} 3. d4 {[%emt 0:00:23]} cxd4 {[%emt 0:01:00]} 4. c3 {[%emt 0:00:26]} dxc3 {[%emt 0:02:23]} 5. Nxc3 {[%emt 0:00:25]} Nc6 {[%emt 0:01:38]} 6. Bc4 {[%emt 0:00:26]} e6 {[%emt 0:01:20]} 7. O-O {[%emt 0:00:26]} Nf6 {[%emt 0:00:34]} 8. Qe2 {[%emt 0:00:35]} Be7 {[%emt 0:02:24]} 9. Rd1 {[%emt 0:01:39]} e5 {[%emt 0:02:31]} 10. Be3 {[%emt 0:04:20]} O-O {[%emt 0:01:32]} 11. Rac1 {[%emt 0:01:00]} a6 {[%emt 0:05:04]} 12. Nd5 {[%emt 0:01:24]} Nxd5 {[%emt 0:08:53]} 13. Bxd5 {[%emt 0:00:24]} Bd7 {[%emt 0:00:49]} 14. h3 {[%emt 0:07:32]} h6 {[%emt 0:01:23]} 15. Rc3 {[%emt 0:00:52]} Kh7 {[%emt 0:01:39]} 16. Nd2 {[%emt 0:02:18]} f5 {[%emt 0:00:36]} 17. exf5 {[%emt 0:00:29]} Bxf5 {[%emt 0:00:35]} 18. Nc4 {[%emt 0:01:05]} Qe8 {[%emt 0:08:34]} 19. Bxc6 {[%emt 0:01:48]} bxc6 {[%emt 0:01:27]} 20. Nxd6 {[%emt 0:00:36]} Bxd6 {[%emt 0:05:24]} 21. Rxd6 {[%emt 0:00:15]} Rf6 {[%emt 0:03:04]} 22. Rxf6 {[%emt 0:00:21]} gxf6 {[%emt 0:00:18]} 23. Qf3 {[%emt 0:01:23]} Qg6 {[%emt 0:01:25]} 24. Rxc6 {[%emt 0:00:39]} Rg8 {[%emt 0:01:31]} 25. Qg3 {[%emt 0:06:28]} Qh5 {[%emt 0:01:08]} 26. Rc7+ {[%emt 0:09:16]} Kh8 {[%emt 0:01:38]} 27. Bg5 {[%emt 0:01:16]} Qxg5 {[%emt 0:01:14]} 28. Qf3 {[%emt 0:01:14]} e4 {[%emt 0:00:50]} 29. Qg3 {[%emt 0:00:20]} Qxg3 {[%emt 0:00:13]} 30. fxg3 {[%emt 0:00:15]} Rxg3 {[%emt 0:00:11]} 31. Kf2 {[%emt 0:00:19]} Rd3 {[%emt 0:00:24]} 32. Ke2 {[%emt 0:00:56]} Rd7 {[%emt 0:00:50]} 33. Rc6 {[%emt 0:00:22]} Kg7 {[%emt 0:02:56]} 34. Rxa6 {[%emt 0:00:28]} Rb7 {[%emt 0:00:46]} 35. b3 {[%emt 0:00:15]} Kg6 {[%emt 0:00:02]} 36. Ke3 {[%emt 0:00:48]} Kg5 {[%emt 0:00:10]} 37. g4 {[%emt 0:00:30]} Bh7 {[%emt 0:00:35]} 38. Ra5+ {[%emt 0:03:09]} Kh4 {[%emt 0:01:17]} 39. Rh5+ {[%emt 0:00:12]} Kg3 {[%emt 0:05:50]} 40. Rxh6 {[%emt 0:00:21]} f5 {[%emt 0:00:21]} 41. gxf5 {[%emt 0:00:28]} Bxf5 {[%emt 0:00:14]} 42. h4 {[%emt 0:00:43]} Rc7 {[%emt 0:00:21]} 43. Rf6 {[%emt 0:08:37]} Bh7 {[%emt 0:01:13]} 44. Rh6 {[%emt 0:00:41]} Bf5 {[%emt 0:00:38]} 45. Rh5 {[%emt 0:01:24]} Bg4 {[%emt 0:02:16]} 46. Re5 {[%emt 0:01:17]} Bf3 {[%emt 0:00:44]} 47. h5 {[%emt 0:00:51]} Rc3+ {[%emt 0:00:14]} 48. Kd2 {[%emt 0:01:40]} Rd3+ {[%emt 0:00:11]} 49. Kc2 {[%emt 0:00:38]} Kf4 {[%emt 0:00:18]} 50. Rc5 {[%emt 0:01:19]} Rd6 {[%emt 0:00:17]} 51. Rc4 {[%emt 0:03:31]} Bxh5 {[%emt 0:01:17]} 52. a4 {[%emt 0:00:21]} Kf3 {[%emt 0:00:11]} 53. Rc5 {[%emt 0:03:53]} Bg6 {[%emt 0:00:18]} 54. Re5 {[%emt 0:02:01]} e3+ {[%emt 0:00:14]} 55. Kc3 {[%emt 0:00:19]} e2 {[%emt 0:00:11]} 56. b4 {[%emt 0:00:49]} Rd3+ {[%emt 0:00:28]} 57. Kc4 {[%emt 0:00:44]} Re3 {[%emt 0:00:05]} 58. Rxe3+ {[%emt 0:01:00]} Kxe3 {[%emt 0:00:09]} 59. a5 {[%emt 0:00:28]} e1=Q {[%emt 0:00:07]} 60. a6 {[%emt 0:00:39]} Qe2+ {[%emt 0:00:04]} 61. Kc5 {[%emt 0:01:04]} Bf7 {[%emt 0:00:53]} 62. a7 {[%emt 0:00:57]} Qc4+ {[%emt 0:00:03]} 0-1

[Event "FIDE WCCC Girls-10 2024"]
[Site "Montesilvano"]
[Date "2024.11.18"]
[Round "3.21"]
[White "Poliak, Margarita"]
[Black "Bhavanya Panchumarthi"]
[Result "0-1"]
[ECO "B72"]
[WhiteElo "1514"]
[BlackElo "1703"]
[PlyCount "90"]
[EventDate "2024.11.18"]
[EventType "swiss"]
[EventCountry "ITA"]
[TimeControl "5400+30"]

1. e4 {[%emt 0:00:04]} c5 {[%emt 0:00:12]} 2. Nf3 {[%emt 0:00:13]} d6 {[%emt 0:00:08]} 3. d4 {[%emt 0:00:07]} cxd4 {[%emt 0:00:27]} 4. Nxd4 {[%emt 0:00:05]} Nf6 {[%emt 0:00:16]} 5. Nc3 {[%emt 0:00:10]} g6 {[%emt 0:00:26]} 6. Be3 {[%emt 0:00:13]} Nc6 {[%emt 0:00:10]} 7. Qd2 {[%emt 0:00:14]} Ng4 {[%emt 0:00:51]} 8. Nxc6 {[%emt 0:02:55]} bxc6 {[%emt 0:00:31]} 9. Bd4 {[%emt 0:00:12]} e5 {[%emt 0:02:26]} 10. Be3 {[%emt 0:00:17]} Nxe3 {[%emt 0:01:14]} 11. Qxe3 {[%emt 0:00:14]} Be6 {[%emt 0:03:03]} 12. Rd1 {[%emt 0:03:47]} Qc7 {[%emt 0:09:57]} 13. Be2 {[%emt 0:04:35]} Bg7 {[%emt 0:03:28]} 14. O-O {[%emt 0:00:59]} O-O {[%emt 0:00:54]} 15. b3 {[%emt 0:11:44]} Rad8 {[%emt 0:09:06]} 16. Bf3 {[%emt 0:00:39]} f5 {[%emt 0:03:21]} 17. Qc1 {[%emt 0:09:58]} Qa5 {[%emt 0:06:07]} 18. Qd2 {[%emt 0:07:58]} fxe4 {[%emt 0:17:57]} 19. Nxe4 {[%emt 0:00:35]} Qxd2 {[%emt 0:00:35]} 20. Rxd2 {[%emt 0:01:12]} d5 {[%emt 0:00:12]} 21. Nc5 {[%emt 0:01:02]} Bf5 {[%emt 0:00:46]} 22. g4 {[%emt 0:16:22]} Bc8 {[%emt 0:05:25]} 23. Kg2 {[%emt 0:04:35]} e4 {[%emt 0:03:20]} 24. Be2 {[%emt 0:00:22]} Bc3 {[%emt 0:02:23]} 25. Rdd1 {[%emt 0:00:40]} Bb4 {[%emt 0:04:03]} 26. Na4 {[%emt 0:00:38]} d4 {[%emt 0:02:21]} 27. f3 {[%emt 0:08:50]} e3 {[%emt 0:03:42]} 28. Nb2 {[%emt 0:05:21]} Kh8 {[%emt 0:03:52]} 29. Na4 {[%emt 0:02:04]} c5 {[%emt 0:02:04]} 30. Ra1 {[%emt 0:03:01]} Ba3 {[%emt 0:02:08]} 31. Rab1 {[%emt 0:04:29]} Bd7 {[%emt 0:01:25]} 32. Nb2 {[%emt 0:00:38]} a5 {[%emt 0:01:57]} 33. Rfd1 {[%emt 0:02:21]} Bb4 {[%emt 0:01:53]} 34. Rf1 {[%emt 0:02:15]} Bc6 {[%emt 0:01:24]} 35. a4 {[%emt 0:00:41]} Bb7 {[%emt 0:01:38]} 36. Nd1 {[%emt 0:01:45]} Rf6 {[%emt 0:01:05]} 37. Nb2 {[%emt 0:02:20]} Rdf8 {[%emt 0:05:16]} 38. Rbd1 {[%emt 0:01:13]} Bc3 {[%emt 0:00:23]} 39. Rb1 {[%emt 0:00:39]} Re8 {[%emt 0:01:01]} 40. Nd1 {[%emt 0:01:42]} Bd2 {[%emt 0:00:57]} 41. Nb2 {[%emt 0:00:27]} Bb4 {[%emt 0:00:28]} 42. Rbd1 {[%emt 0:01:26]} Ba6 {[%emt 0:01:24]} 43. Bxa6 {[%emt 0:00:34]} Rxa6 {[%emt 0:00:03]} 44. Nd3 {[%emt 0:01:44]} e2 {[%emt 0:00:19]} 45. Rfe1 {[%emt 0:00:07]} exd1=Q {[%emt 0:00:25]} 0-1